[Event "81st Italian Championship 2022"]
[Site "Cagliari"]
[Date "2022.11.12"]
[Round "1.5"]
[White "Brunello, Sabino"]
[Black "Sonis, Francesco"]
[Result "1-0"]
[ECO "B94"]
[WhiteElo "2518"]
[BlackElo "2547"]
[Annotator "TA"]
[PlyCount "97"]
[EventDate "2022.11.12"]
[EventType "tourn"]
[EventCountry "ITA"]
[SourceTitle "playchess.com"]
[Source "ChessBase"]
[SourceQuality "1"]
[TimeControl "40/6000+30:20/3000:900+30"]

{[%evp 11,97,8,28,27,40,31,19,37,91,101,102,104,101,101,118,112,112,112,140,105,100,75,116,105,75,104,187,183,189,177,183,170,180,175,196,197,277,215,261,237,238,192,272,199,219,208,345,335,312,289,492,0,428,204,250,236,243,220,252,245,317,318,328,322,385,364,367,387,368,376,545,397,559,585,641,507,515,520,774,768,991,982,962,764,764,757,739,729]} 1. e4 {[%emt 0:00:01]} c5 {[%emt 0:02:43]} 2. Nf3 {[%emt 0:00:20]} d6 {[%emt 0:00:07]} 3. d4 {[%emt 0:01:49]} cxd4 {[%emt 0:00:27]} 4. Nxd4 {[%emt 0:00:01]} Nf6 {[%emt 0:00:10]} 5. Nc3 {[%emt 0:00:04]} a6 {[%emt 0:00:04]} 6. Bg5 {[%emt 0:01:04]} Nbd7 {[%emt 0:00:08]} 7. Qe2 {[%emt 0:03:26] 7.Qe2 is setting a new trend. B94: Sicilian Najdorf: 6 Bg5 Nbd7.} e6 {[%emt 0:05:42]} 8. f4 {[%emt 0:00:44]} h6 {[%emt 0:07:50]} 9. Bh4 {[%emt 0:01:06][%cal Bg5h4,Bh4e1,Be1d2][%mdl 32] Strongly threatening e5. The position is equal.} Qa5 {[%emt 0:14:03] Prevents e5.} (9... e5 $14) 10. O-O-O $1 $16 {[%emt 0:06:07]} Be7 {[%emt 0:02:05]} 11. Kb1 {[%emt 0:03:20]} g5 {[%emt 0:10:01] [#]} 12. Be1 $146 {[%emt 0:42:55][%cal Oc3d5] And now Nd5! would win.} ({Predecessor:} 12. Nb3 Qc7 13. fxg5 Nh7 14. Bg3 hxg5 15. Qd2 Ne5 16. Be2 Bd7 17. Rhf1 Nf8 18. Nd4 {1-0 (36) Siva,M (2349)-Pacheco Lugo,A (2127) Chess.com INT 2021}) 12... Qc7 {[%emt 0:19:04]} 13. g3 {[%emt 0:01:59]} b5 {[%emt 0:12:25]} 14. Bg2 {[%emt 0:01:08][%cal Oe4e5]} Rb8 {[%emt 0:00:06]} 15. a3 {[%emt 0:13:00][%cal Oe4e5]} Bb7 {[%emt 0:01:41]} 16. Bd2 {[%emt 0:00:42]} Nb6 {[%emt 0:02:39]} 17. fxg5 {[%emt 0:03:48]} hxg5 {[%emt 0:00:07]} 18. Bxg5 {[%emt 0:00:10]} Qc5 {[%emt 0:11:28]} (18... Nc4 $16) 19. h4 $18 {[%emt 0:10:05]} Nfd7 {[%emt 0:01:07]} 20. Bxe7 {[%emt 0:03:56]} Kxe7 {[%emt 0:00:02]} 21. g4 {[%emt 0:00:11][%cal Bg3g4,Bg4g5][%mdl 32]} Nc4 {[%emt 0:00:34][%cal Oc4a3]} 22. Rh3 {[%emt 0:00:28]} Nce5 {[%emt 0:00:37]} 23. g5 {[%emt 0:03:37]} Ba8 {[%emt 0:04:33]} (23... b4 $142) 24. Na2 {[%emt 0:04:22]} Rbg8 {[%emt 0:02:18]} 25. Nc1 {[%emt 0:02:52]} Qb6 {[%emt 0:03:02]} 26. Ncb3 {[%emt 0:01:08]} Rg6 {[%emt 0:04:05]} (26... Kd8 $142 27. Nf3 Ng6) 27. Rf1 {[%emt 0:01:09]} Ke8 {[%emt 0:00:45]} 28. Qf2 {[%emt 0:01:38]} Qd8 {[%emt 0:00:42]} (28... Rgg8 $142 29. Qf4 Qd8) 29. Rc3 {[%emt 0:00:43]} Rg7 {[%emt 0:00:47]} 30. Bh3 {[%emt 0:00:45][%cal Oh3e6] Hoping for Bxe6!} Nf8 {[%emt 0:01:37] [#]} (30... Bxe4 31. Bxe6 fxe6) 31. Bg2 $2 {[%emt 0:00:56]} (31. Na5 $1 $18 {[%mdl 512]}) 31... Rgh7 $2 {[%emt 0:00:51][%mdl 8192] [#]} (31... Nfd7 $1 $11 {and Black stays safe.}) 32. Rh3 {[%emt 0:01:31]} (32. Na5 $142 $1 {[%mdl 512]}) 32... Nfd7 {[%emt 0:00:30]} 33. Ne2 {[%emt 0:00:37]} Qb6 {[%emt 0:00:55]} 34. Qe1 {[%emt 0:00:48]} Ng6 {[%emt 0:00:55][%cal Rh7h4] [#]} 35. Rfh1 $1 {[%emt 0:00:15]} Nde5 {[%emt 0:00:16]} 36. h5 {[%emt 0:00:33]} Nf8 {[%emt 0:00:09]} 37. Nf4 {[%emt 0:00:25]} Rg8 {[%emt 0:01:02]} 38. g6 {[%emt 0:00:36]} fxg6 {[%emt 0:00:55]} 39. hxg6 {[%emt 0:00:05]} Rhg7 {[%emt 0:00:58]} 40. Rc3 {[%emt 0:01:25][%cal Bh3c3,Bc3g3,Bg3g2][%mdl 32] Threatens to win with Rc8+.} Kd7 {[%emt 0:01:16] Prevents Rc8.} (40... Bc6 {is a better defense.} 41. Bh3 Bd7) 41. Rf1 {[%emt 0:18:30] aiming for Bh3.} Nfxg6 {[%emt 0:08:48]} (41... a5 $142 42. Bh3 b4) 42. Nh5 {[%emt 0:00:31] White is clearly winning.} Bc6 {[%emt 0:00:42]} 43. Nxg7 {[%emt 0:01:51]} Rxg7 {[%emt 0:00:00]} 44. Rg3 {[%emt 0:00:00]} Qd8 {[%emt 0:05:38]} 45. Nd4 {[%emt 0:00:10][%cal Bb3d4,Bd4e6,Be6f8][%mdl 32]} Qh4 {[%emt 0:00:00]} 46. Qc3 {[%emt 0:13:54]} Bxe4 {[%emt 0:05:06] [#]} 47. Nxe6 $1 {[%emt 0:00:00][%mdl 512]} Bxg2 {[%emt 0:00:20]} 48. Nf8+ {[%emt 0:00:00]} ({Stronger than} 48. Nxg7 Bxf1 49. Qe3 Kc6 $11) 48... Ke8 {[%emt 0:00:36]} 49. Rxg2 {[%emt 0:00:00] Weighted Error Value: White=0.45/Black=0.58} 1-0

[Event "81st Italian Championship 2022"]
[Site "Cagliari"]
[Date "2022.11.12"]
[Round "1.6"]
[White "Basso, Pier Luigi"]
[Black "David, Alberto"]
[Result "1/2-1/2"]
[ECO "B80"]
[WhiteElo "2503"]
[BlackElo "2517"]
[Annotator "TA"]
[PlyCount "27"]
[EventDate "2022.11.12"]
[EventType "tourn"]
[EventCountry "ITA"]
[SourceTitle "playchess.com"]
[Source "ChessBase"]
[SourceQuality "1"]
[TimeControl "40/6000+30:20/3000:900+30"]

{[%evp 12,27,30,0,31,32,26,19,49,52,45,35,54,14,26,20,16,1]} 1. e4 {[%emt 0:04:55]} c5 {[%emt 0:01:23]} 2. Nf3 {[%emt 0:02:06]} e6 {[%emt 0:00:05]} 3. d4 {[%emt 0:00:05]} cxd4 {[%emt 0:00:04]} 4. Nxd4 {[%emt 0:00:08]} Nf6 {[%emt 0:05:23]} 5. Nc3 {[%emt 0:00:13]} d6 {[%emt 0:00:02]} 6. Be3 {[%emt 0:00:45]} a6 {[%emt 0:01:03]} 7. f3 {[%emt 0:00:31]} h5 {[%emt 0:01:12] B80: Sicilian Scheveningen: 6 g3 and 6 Be3, including English Attack.} 8. Bc4 {[%emt 0:02:51]} Be7 {[%emt 0:03:40]} 9. Qe2 {[%emt 0:07:57]} Nc6 {[%emt 0:05:05]} 10. O-O-O {[%emt 0:05:55]} Qc7 {[%emt 0:01:07]} 11. Bb3 {[%emt 0:02:39]} Na5 {[%emt 0:03:39]} 12. Kb1 {[%emt 0:03:19]} b5 {[%emt 0:01:24] [#]} 13. Rhe1 $146 {[%emt 0:03:14]} ({Predecessor:} 13. h4 b4 14. Na4 Nxb3 15. cxb3 Bd7 16. Rc1 Qb7 17. Bg5 O-O 18. e5 dxe5 19. Qxe5 {0-1 (46) Narva,J (2300)-Shvyrjov,I (2461) Viljandi 2013}) 13... Bd7 {[%emt 0:23:58]} 14. Bg5 {[%emt 0:14:21] Weighted Error Value: White=0.11 (very precise) /Black=0.10 (very precise)} 1/2-1/2

[Event "81st Italian Championship 2022"]
[Site "Cagliari"]
[Date "2022.11.13"]
[Round "2.1"]
[White "Barp, Alberto"]
[Black "David, Alberto"]
[Result "1/2-1/2"]
[ECO "E11"]
[WhiteElo "2412"]
[BlackElo "2517"]
[Annotator "TA"]
[PlyCount "137"]
[EventDate "2022.11.12"]
[EventType "tourn"]
[EventCountry "ITA"]
[SourceTitle "playchess.com"]
[Source "ChessBase"]
[SourceQuality "1"]
[TimeControl "40/6000+30:20/3000:900+30"]

{[%evp 12,137,11,15,39,27,33,16,16,15,28,12,19,6,28,25,26,29,46,22,58,53,58,67,76,68,68,74,81,91,88,94,92,91,88,91,88,64,65,51,72,38,40,37,80,72,62,12,17,13,94,0,14,2,6,-8,-3,-7,0,0,1,-1,-5,-56,-52,-50,-52,-54,-58,-70,-69,-59,-41,-55,-55,-59,-55,-55,-55,-48,-47,-47,-47,-76,-76,-76,-76,-76,-76,-76,-76,-76,-76,-76,-76,-76,-8,-8,-8,-8,0,0,0,0,0,0,0,0,0,0,0,-8,0,0,0,0,0,0,0,0,0,0,0,0,0,0,0,0]} 1. d4 {[%emt 0:00:03]} Nf6 {[%emt 0:00:12]} 2. c4 {[%emt 0:00:04]} e6 {[%emt 0:00:07]} 3. Nf3 {[%emt 0:00:04]} d5 {[%emt 0:00:21]} 4. g3 {[%emt 0:00:11]} Bb4+ {[%emt 0:00:16]} 5. Bd2 {[%emt 0:00:06]} a5 {[%emt 0:00:08]} 6. Bg2 {[%emt 0:00:28]} O-O {[%emt 0:00:16]} 7. Qc2 {[%emt 0:02:42]} c5 {[%emt 0:00:07] E11: Bogo-Indian.} 8. cxd5 $1 {[%emt 0:01:51] 8.cxd5 is better than 8.dxc5.} cxd4 {[%emt 0:01:02]} 9. a3 {[%emt 0:15:40]} Bxd2+ {[%emt 0:00:46]} 10. Qxd2 {[%emt 0:00:19]} Qxd5 {[%emt 0:00:20]} 11. Qxd4 {[%emt 0:00:13]} Qb5 {[%emt 0:00:53]} 12. Qe5 {[%emt 0:08:35] [#]} Nd5 $146 {[%emt 0:17:49]} ({Predecessor:} 12... Qb6 13. Nbd2 Nc6 14. Qc3 Qa6 15. Nc4 b5 16. Nce5 Nxe5 17. Qxe5 Bb7 18. O-O Rac8 {½-½ (69) Svane,R (2637)-Ivic,V (2606) Warsaw 2021}) 13. Nc3 {[%emt 0:01:52]} Nxc3 {[%emt 0:01:43]} 14. Qxc3 {[%emt 0:03:57]} Nc6 {[%emt 0:02:17]} 15. O-O {[%emt 0:07:25]} e5 {[%emt 0:04:16]} 16. e3 {[%emt 0:02:57]} Bf5 {[%emt 0:05:14]} 17. Rfd1 {[%emt 0:06:46]} Rfe8 {[%emt 0:01:10]} 18. Nd2 {[%emt 0:10:39]} Bg4 {[%emt 0:11:07]} 19. Rdc1 {[%emt 0:15:58]} Be6 {[%emt 0:23:07]} 20. Ne4 {[%emt 0:05:59]} Red8 {[%emt 0:00:50] Against Nd6} 21. Nc5 {[%emt 0:01:47][%cal Oc5b7]} Bd5 {[%emt 0:00:05]} 22. Bf1 {[%emt 0:08:49]} Qb6 {[%emt 0:00:15]} 23. Na4 {[%emt 0:00:08]} Qc7 {[%emt 0:01:15]} 24. Qc5 {[%emt 0:00:05] [#] Hoping for Nb6.} Bf3 {[%emt 0:02:37]} 25. Nb6 {[%emt 0:00:18]} Rab8 {[%emt 0:00:39]} 26. b4 {[%emt 0:00:49]} (26. Qxa5 $5 Qe7 27. Qb5 $14) 26... axb4 {[%emt 0:02:32]} 27. axb4 {[%emt 0:00:04][%cal Ba3b4,Bb4b5][%mdl 32]} Rd6 {[%emt 0:02:39]} 28. b5 {[%emt 0:02:43]} Qd8 {[%emt 0:00:04][%cal Oh7h6]} 29. Nc4 {[%emt 0:06:30]} (29. Na4 $14 Na5 30. Qc3) 29... Rd5 $11 {[%emt 0:00:05][%cal Bd6d5,Bd5b5,Bb5b6][%mdl 32]} 30. Qb6 {[%emt 0:00:28]} Nb4 {[%emt 0:01:38]} (30... Ne7 $11) 31. Qa7 {[%emt 0:06:42]} (31. Rcb1 $16 Nc2 32. Ra2) 31... Rxb5 {[%emt 0:14:05]} 32. Qa4 {[%emt 0:00:39]} Bc6 {[%emt 0:00:18] [#] And now ...Qd5 would win.} 33. Na5 {[%emt 0:00:11]} Rb6 {[%emt 0:00:33]} 34. Nxc6 {[%emt 0:00:25]} Nxc6 {[%emt 0:00:56]} 35. Bg2 {[%emt 0:00:18]} Rb2 {[%emt 0:04:46]} 36. Bxc6 {[%emt 0:01:53] Threatens to win with Bf3.} Qf6 {[%emt 0:00:27] Against Bf3} 37. Rc2 {[%emt 0:00:44]} (37. f4 $11 bxc6 38. Qxc6) 37... Rxc2 $15 {[%emt 0:00:32]} 38. Qxc2 {[%emt 0:00:02]} Qxc6 {[%emt 0:01:54]} 39. Qxc6 {[%emt 0:00:27]} bxc6 {[%emt 0:00:03][%mdl 4096] Endgame KR-KR} 40. Ra6 {[%emt 0:01:01]} Rc8 $1 {[%emt 0:00:44]} 41. Kf1 {[%emt 0:03:06]} Kf8 {[%emt 0:01:43]} 42. Ra7 {[%emt 0:01:48]} h5 {[%emt 0:00:13]} 43. h4 {[%emt 0:01:55]} Rb8 {[%emt 0:01:03]} 44. Rc7 {[%emt 0:03:29]} Rb1+ {[%emt 0:00:00]} 45. Kg2 {[%emt 0:01:05]} Rc1 {[%emt 0:00:00]} 46. e4 {[%emt 0:03:09]} Rc3 {[%emt 0:00:00]} 47. f4 {[%emt 0:02:06]} exf4 {[%emt 0:00:36]} 48. gxf4 {[%emt 0:01:21]} g6 {[%emt 0:00:00]} 49. Kf2 {[%emt 0:06:34]} Rh3 {[%emt 0:05:45]} 50. Rxc6 {[%emt 0:00:19]} Rxh4 {[%emt 0:00:00]} 51. Kg3 {[%emt 0:02:14]} Rg4+ {[%emt 0:00:00]} 52. Kf3 {[%emt 0:00:00]} Kg7 {[%emt 0:05:45]} 53. e5 {[%emt 0:07:16]} g5 {[%emt 0:00:00]} (53... Rg1 $17) 54. fxg5 $11 {[%emt 0:00:00] The position is equal.} Rxg5 {[%emt 0:00:00]} 55. Kf4 {[%emt 0:00:00]} Rg6 {[%emt 0:00:59]} 56. Rc1 {[%emt 0:01:04]} Kh6 {[%emt 0:00:21]} 57. Rc8 {[%emt 0:02:01]} Rg4+ {[%emt 0:02:39]} 58. Kf5 {[%emt 0:00:18]} Kg7 {[%emt 0:00:00]} 59. Rc7 {[%emt 0:03:08]} Rg6 {[%emt 0:00:00]} 60. Rc3 {[%emt 0:01:33]} Rg1 {[%emt 0:00:00]} 61. Rc7 {[%emt 0:17:44]} h4 {[%emt 0:18:51] Strongly threatening ...h3.} 62. e6 {[%emt 0:03:39]} h3 {[%emt 0:02:26]} 63. Rxf7+ {[%emt 0:00:00]} (63. e7 {is interesting.} h2 64. e8=Q Rf1+ 65. Kg4) 63... Kg8 {[%emt 0:00:00] ( -> ...h2)} 64. Kf6 $1 {[%emt 0:00:00]} h2 {[%emt 0:00:00]} 65. e7 {[%emt 0:00:00][%cal Re7e8]} Re1 {[%emt 0:00:00]} 66. Rf8+ $1 {[%emt 0:00:00]} Kh7 {[%emt 0:00:00]} 67. Rf7+ {[%emt 0:00:00]} Kh6 {[%emt 0:00:00]} 68. Rf8 {[%emt 0:00:00][%cal Rf8h8]} Kh7 {[%emt 0:00:00] Prevents Rh8+.} (68... Rxe7 69. Kxe7 Kg7 70. Rf1 Kg6 71. Ke6 Kh5 72. Rh1 Kg5 73. Rxh2) 69. Rf7+ {[%emt 0:00:00] Weighted Error Value: White=0.10 (very precise) /Black=0.09 (flawless)} 1/2-1/2

[Event "81st Italian Championship 2022"]
[Site "Cagliari"]
[Date "2022.11.13"]
[Round "2.3"]
[White "Di Benedetto, Edoardo"]
[Black "Brunello, Sabino"]
[Result "0-1"]
[ECO "D46"]
[WhiteElo "2378"]
[BlackElo "2518"]
[Annotator "TA"]
[PlyCount "84"]
[EventDate "2022.11.12"]
[EventType "tourn"]
[EventCountry "ITA"]
[SourceTitle "playchess.com"]
[Source "ChessBase"]
[SourceQuality "1"]
[TimeControl "40/6000+30:20/3000:900+30"]

{[%evp 18,84,17,-22,-35,-27,-18,-97,-48,-77,-76,-112,-134,-125,-130,-130,-139,-141,-120,-137,-125,-132,-131,-141,-103,-128,-120,-111,-127,-126,-94,-104,-85,-314,-268,-261,-259,-268,-218,-233,-233,-233,-177,-191,-156,-539,-423,-416,-409,-410,-408,-428,-414,-424,-403,-470,-470,-459,-458,-452,-442,-538,-521,-640,-616,-2352,-2223,-1929,-1775]} 1. d4 {[%emt 0:01:01]} d5 {[%emt 0:00:06]} 2. c4 {[%emt 0:00:06]} c6 {[%emt 0:00:05]} 3. Nc3 {[%emt 0:00:16]} Nf6 {[%emt 0:00:05]} 4. Nf3 {[%emt 0:00:11]} e6 {[%emt 0:00:05]} 5. e3 {[%emt 0:00:13]} Bd6 {[%emt 0:00:51]} 6. Bd3 {[%emt 0:01:17]} O-O {[%emt 0:00:26]} 7. O-O {[%emt 0:05:48]} Nbd7 {[%emt 0:00:52]} 8. e4 {[%emt 0:05:00]} dxc4 $1 {[%emt 0:00:31][%mdl 4] is more profitable than 8...dxe4 at the moment.} 9. Bxc4 {[%emt 0:00:08]} e5 {[%emt 0:00:03]} 10. Re1 {[%emt 0:04:36]} exd4 {[%emt 0:24:46] D46: Semi-Slav: 5 e3 Nbd7 6 Bd3, Black avoids the Meran.} 11. Nxd4 {[%emt 0:01:46]} Ne5 {[%emt 0:00:25]} 12. Bb3 {[%emt 0:23:14]} (12. Be2 $1 $11) 12... Bc5 {[%emt 0:05:39]} (12... Nfg4 $17 {Strongly threatening ...Qh4.} 13. h3 (13. Nf5 $2 Bxf5 14. h3 Qh4 $19) 13... Bc5) 13. Be3 {[%emt 0:01:47][%cal Od4c6]} Nfg4 {[%emt 0:07:06]} 14. Nf5 {[%emt 0:03:22] [#] Against Qh4} Bxe3 $146 {[%emt 0:06:32]} ({Predecessor:} 14... Nxe3 15. Nxe3 Qg5 16. Qe2 Bg4 17. Nxg4 Nxg4 18. Nd1 Rad8 19. h3 Nxf2 20. Nxf2 Rd2 {0-1 (26) Lachmann,H (1690)-Berndt,W (2045) Darmstadt 1995}) 15. fxe3 {[%emt 0:01:49]} Qg5 $36 {[%emt 0:08:55][%mdl 2048] Black is really pushing. The board is on fire.} 16. h3 {[%emt 0:05:31]} Bxf5 {[%emt 0:07:54]} 17. exf5 {[%emt 0:00:07]} Nf6 {[%emt 0:00:39]} ({Inferior is} 17... Nxe3 18. Qe2 Nxg2 19. Ne4 (19. Qxg2 Nf3+ 20. Kh1 Qxg2+ 21. Kxg2 Nxe1+ 22. Rxe1 Rfe8 $17) 19... Nf3+ 20. Qxf3 Nxe1+ 21. Nxg5 $15) (17... Qxf5 18. hxg4 Nxg4 19. Qf3 $18) 18. Qe2 {[%emt 0:02:50]} Qxf5 {[%emt 0:00:15]} 19. Rf1 {[%emt 0:00:25]} Qg5 {[%emt 0:02:45]} 20. Bc2 {[%emt 0:00:36]} g6 {[%emt 0:01:47] Against Rf5} 21. Qf2 {[%emt 0:00:55]} Nfd7 {[%emt 0:04:19]} 22. Ne4 {[%emt 0:00:48]} Qe7 {[%emt 0:00:56]} 23. Rad1 {[%emt 0:00:08]} f5 {[%emt 0:06:47]} 24. Nd6 {[%emt 0:00:39]} Nf6 {[%emt 0:00:53] [#] Hoping for ...Rad8.} 25. Rd2 $2 {[%emt 0:02:58]} (25. e4 $17) 25... Rad8 {[%emt 0:13:15]} 26. Bb3+ {[%emt 0:00:22]} Kg7 {[%emt 0:01:38]} 27. Rfd1 {[%emt 0:00:04]} Rd7 {[%emt 0:02:39]} ({Weaker is} 27... Nd5 28. Nb5 $17) 28. Qh4 {[%emt 0:03:31]} Rfd8 {[%emt 0:02:46][%cal Rd7d6]} 29. Nc4 {[%emt 0:00:35]} b5 {[%emt 0:04:39]} 30. Rxd7 {[%emt 0:00:48]} Rxd7 {[%emt 0:02:01]} 31. Nd2 $2 {[%emt 0:03:43] [#] Now White is beyond hope.} (31. Nxe5 $17 {nothing else works.} Qxe5 32. Rxd7+ Nxd7 33. Qd4 Qxd4 34. exd4) 31... Nd3 {[%emt 0:00:34]} 32. Nf1 {[%emt 0:01:41]} Nxb2 {[%emt 0:00:42] Pair of Knights!} 33. Rxd7 {[%emt 0:02:36]} Qxd7 {[%emt 0:00:04]} 34. Qb4 {[%emt 0:00:52]} Nd3 {[%emt 0:01:46]} 35. Qc3 {[%emt 0:00:06]} c5 {[%emt 0:01:21][%cal Bc6c5,Bc5c4,Bc4c3][%mdl 32]} 36. a4 {[%emt 0:00:07]} a6 {[%emt 0:02:25] Black is clearly winning.} 37. Qa5 {[%emt 0:00:02]} c4 {[%emt 0:00:44]} 38. Bc2 {[%emt 0:00:02]} Nc5 {[%emt 0:00:14][%cal Rc5a4]} 39. Qb6 {[%emt 0:00:52]} Nxa4 {[%emt 0:00:23]} 40. Bxa4 {[%emt 0:00:18]} bxa4 {[%emt 0:00:01]} 41. Qxa6 {[%emt 0:49:10]} c3 {[%emt 0:49:33]} 42. Qc4 {[%emt 0:00:00] Inhibits Qc7.} Ne4 {[%emt 0:00:00] Weighted Error Value: White=0.64/Black=0.17 (very precise)} 0-1

[Event "81st Italian Championship 2022"]
[Site "Cagliari"]
[Date "2022.11.13"]
[Round "2.4"]
[White "Dvirnyy, Danyyil"]
[Black "Godena, Michele"]
[Result "1-0"]
[ECO "C45"]
[WhiteElo "2514"]
[BlackElo "2463"]
[Annotator "TA"]
[PlyCount "79"]
[EventDate "2022.11.12"]
[EventType "tourn"]
[EventCountry "ITA"]
[SourceTitle "playchess.com"]
[Source "ChessBase"]
[SourceQuality "1"]
[TimeControl "40/6000+30:20/3000:900+30"]

{[%evp 12,79,38,26,22,24,58,33,45,19,64,64,58,46,56,45,85,60,77,56,60,57,53,66,75,75,72,74,86,72,117,98,120,112,122,129,121,125,283,273,463,452,440,274,262,256,317,288,272,154,29979,29980,29980,29980,29991,29992,29992,29993,29993,29991,29991,29992,29992,29989,29992,29993,29993,29987,29998,29999]} 1. e4 {[%emt 0:00:06]} e5 {[%emt 0:00:11]} 2. Nf3 {[%emt 0:00:08]} Nc6 {[%emt 0:00:07]} 3. d4 {[%emt 0:00:07]} exd4 {[%emt 0:00:12]} 4. Nxd4 {[%emt 0:00:07]} Bc5 {[%emt 0:07:30]} 5. Nb3 {[%emt 0:00:31]} Bb4+ {[%emt 0:08:14]} 6. c3 {[%emt 0:01:08]} Be7 {[%emt 0:00:17]} 7. g3 {[%emt 0:01:55]} d6 {[%emt 0:06:13] C45: Scotch Game.} 8. Bg2 {[%emt 0:00:42]} Bf6 {[%emt 0:24:58]} 9. O-O {[%emt 0:04:12]} Nge7 {[%emt 0:00:21] White is slightly better.} 10. Be3 {[%emt 0:08:51] [#]} g6 $146 {[%emt 0:15:21]} ({Predecessor:} 10... O-O 11. N1d2 Be6 12. Qh5 Ne5 13. h3 Qd7 14. Nd4 g6 15. Qh6 Bg7 16. Qh4 c5 17. Nxe6 fxe6 {1-0 (28) Rajala,O-Liebener,U ICCF corr 1990}) 11. N1d2 {[%emt 0:10:01]} Bg7 {[%emt 0:01:26]} 12. Qc2 {[%emt 0:10:08]} O-O {[%emt 0:00:47]} 13. Rad1 {[%emt 0:03:20]} f5 {[%emt 0:09:08]} 14. h3 {[%emt 0:05:37]} Kh8 {[%emt 0:03:54]} 15. f4 {[%emt 0:01:17][%cal Oe4e5]} Be6 {[%emt 0:03:24]} 16. Rfe1 {[%emt 0:00:33][%cal Oe4e5]} Bg8 {[%emt 0:07:17]} 17. Bf2 {[%emt 0:04:02]} Qc8 {[%emt 0:09:01]} 18. Nf3 {[%emt 0:10:57]} fxe4 {[%emt 0:00:57]} 19. Qxe4 {[%emt 0:01:29]} a5 {[%emt 0:00:38]} 20. Qa4 {[%emt 0:04:22] White is much more active.} Nf5 {[%emt 0:05:48]} 21. Nfd4 {[%emt 0:06:48]} Ncxd4 {[%emt 0:02:10]} 22. Nxd4 {[%emt 0:00:10]} c6 {[%emt 0:01:37]} 23. Nxf5 {[%emt 0:02:40]} Qxf5 {[%emt 0:00:01]} 24. Rxd6 {[%emt 0:01:18]} b5 $2 {[%emt 0:00:09] [#]} (24... Rae8 $16 {might work better.}) 25. Qd1 $18 {[%emt 0:01:52]} Bxa2 $2 {[%emt 0:00:03]} (25... Rf6 {was worth a try.} 26. Bxc6 Raf8 27. Rxf6 Bxf6) 26. Bxc6 {[%emt 0:01:00][%cal Bg2c6,Bc6d7,Bd7e6][%mdl 32]} Ra6 {[%emt 0:02:08]} 27. Bd7 {[%emt 0:04:48] Inhibits Qc8.} Rxd6 {[%emt 0:00:03]} 28. Qxd6 {[%emt 0:00:07]} Qc2 {[%emt 0:01:33]} 29. Bd4 {[%emt 0:08:46]} Bxd4+ {[%emt 0:00:36]} 30. cxd4 {[%emt 0:02:43]} (30. Qxd4+ $18 Kg8 31. Bxb5) 30... Kg8 $2 {[%emt 0:00:09] [#] This costs Black the game.} (30... Kg7 $16 31. Qe5+ (31. Bxb5 Qxb2 32. Qe5+ Kg8 $16) 31... Kg8) 31. d5 {[%emt 0:02:59] White mates.} Kg7 {[%emt 0:01:09]} 32. Be6 {[%emt 0:03:33]} Ra8 {[%emt 0:00:11]} 33. Qe7+ {[%emt 0:01:58]} Kh6 {[%emt 0:00:03]} 34. g4 {[%emt 0:00:23][%cal Bg3g4,Bg4g5][%mdl 32]} Rh8 {[%emt 0:00:35]} 35. Qg5+ {[%emt 0:00:57]} Kg7 {[%emt 0:00:05]} 36. Qe5+ {[%emt 0:00:20]} Kh6 {[%emt 0:00:10]} 37. g5+ {[%emt 0:01:24]} Kh5 {[%emt 0:00:07]} 38. Qe3 {[%emt 0:02:07]} Kh4 {[%emt 0:02:00]} 39. f5 {[%emt 0:00:18]} Re8 {[%emt 0:00:55]} 40. Qf4+ {[%emt 0:00:12] Weighted Error Value: White=0.20 (precise) /Black=0.44} 1-0